bitfinex-derivatives/quotes_SOLF0:USTF0_20260222
["timestamp","ask_amount","ask_price","bid_price","bid_amount"]
[1771732936183,3.82581153,85.1,85.071,3.96366077]
[1771732937180,3.82581153,85.1,85.008,35.32]
[1771732937181,3.82581153,85.1,85.06,2.4754301]
[1771732937982,3.82581153,85.1,85.061,3.96366077]
[1771732938284,3.82581153,85.1,85.07,2.4754301]
[1771732940180,3.82581153,85.1,85.06,2.4754301]
[1771732940483,3.82581153,85.1,85.061,3.96366077]
[1771732951189,3.82581153,85.1,85.071,3.96366077]
[1771732961092,3.75240531,85.119,85.08,2.4754301]
[1771732961292,3.75240531,85.117,85.08,2.4754301]
[1771732969698,3.75240531,85.115,85.08,2.4754301]
[1771732971107,3.75240531,85.115,85.081,3.72601238]
[1771732971505,10.99175662,85.15,85.081,3.72601238]
[1771732971506,3.75240531,85.133,85.09,2.4754301]
[1771732972202,3.75240531,85.133,85.083,3.72601238]
[1771732974806,3.75240531,85.149,85.111,3.72601238]
[1771732975006,3.75240531,85.163,85.121,3.72601238]
[1771732975309,3.75240531,85.177,85.15,2.4754301]
[1771732975512,10.99175662,85.2,85.15,2.4754301]
[1771732975513,3.75240531,85.191,85.15,2.4754301]
[1771732976208,3.75240531,85.189,85.14,6.20144248]
[1771732978607,3.75240531,85.189,85.15,2.4754301]
[1771732979713,3.75240531,85.189,85.15,6.20144248]
[1771732980210,3.75240531,85.189,85.151,3.72601238]
[1771732980907,3.75240531,85.189,85.16,2.4754301]
[1771732981107,3.75240531,85.209,85.161,3.72601238]
[1771732983314,3.75240531,85.209,85.171,3.72601238]
[1771732984017,3.75240531,85.209,85.18,2.4754301]
[1771732985214,3.75240531,85.209,85.17,2.4754301]
[1771732985810,3.75240531,85.209,85.171,3.72601238]
[1771732986014,3.75240531,85.209,85.18,2.4754301]
[1771732986309,3.75240531,85.229,85.2,2.4754301]
[1771732986508,568.12763653,85.267,85.143,35.32]
[1771732986509,3.75240531,85.259,85.21,2.4754301]
[1771732987610,3.75240531,85.259,85.201,3.72601238]
[1771732987915,3.75240531,85.258,85.201,3.72601238]
[1771732988714,3.85629636,85.255,85.201,3.72601238]
[1771732989115,19.0967769,85.273,85.221,3.91356103]
[1771732989318,3.85629636,85.272,85.221,3.91356103]
[1771732990016,3.85629636,85.272,85.23,2.4654913]
[1771732990815,3.85629636,85.268,85.21,2.4654913]
[1771732991017,3.85629636,85.249,85.2,2.4654913]
[1771732991318,3.85629636,85.249,85.154,35.32]
[1771732991319,3.85629636,85.249,85.22,2.4654913]
[1771732991717,3.85629636,85.249,85.211,3.91356103]
[1771733001322,3.78413565,85.272,85.221,3.85715881]
[1771733001729,3.78413565,85.269,85.221,3.85715881]
[1771733006933,3.78413565,85.265,85.221,3.85715881]
[1771733008630,19.0967769,85.273,85.231,3.85715881]
[1771733010332,19.0967769,85.273,85.241,3.85715881]
[1771733010528,3.78413565,85.272,85.23,6.32265011]
[1771733010735,3.78413565,85.272,85.231,3.85715881]
[1771733011033,19.0967769,85.273,85.23,2.4654913]
[1771733011034,19.0967769,85.273,85.235,3.85715881]
[1771733011338,7.69e-05,85.273,85.26,6.32265011]
[1771733011638,7.69e-05,85.273,85.26,3.85715881]
[1771733013135,7.69e-05,85.273,85.261,3.85715881]
[1771733014938,3.78413565,85.318,85.261,3.85715881]
[1771733015136,3.78413565,85.318,85.28,2.4654913]
[1771733016239,3.78413565,85.318,85.281,3.85715881]
[1771733017338,3.78413565,85.318,85.216,164.353]
[1771733017339,3.78413565,85.318,85.266,3.85715881]
[1771733017740,3.78413565,85.309,85.242,3.85715881]
[1771733018038,3.78413565,85.309,85.25,2.4654913]
[1771733018430,3.78413565,85.309,85.251,3.89063911]
[1771733018634,3.78413565,85.309,85.26,2.4654913]
[1771733022834,3.78413565,85.309,85.251,3.89063911]
[1771733023947,3.62485337,85.306,85.251,3.89063911]
[1771733024240,3.62485337,85.299,85.251,3.89063911]
[1771733024646,3.62485337,85.296,85.251,3.89063911]
[1771733029349,2.4654913,85.3,85.251,3.89063911]
[1771733029350,3.62485337,85.294,85.251,3.89063911]
[1771733036662,3.62485337,85.294,85.18,164.4221]
[1771733036663,3.62485337,85.279,85.23,2.4654913]
[1771733036965,3.62485337,85.279,85.228,3.89063911]
[1771733037662,10.5585,85.273,85.228,3.89063911]
[1771733037962,3.62485337,85.272,85.228,3.89063911]
[1771733038565,3.62485337,85.272,85.23,2.4654913]
[1771733045569,3.62485337,85.272,85.23,6.35613041]
[1771733045766,3.62485337,85.272,85.231,3.89063911]
[1771733054072,3.62485337,85.272,85.24,2.46557033]
[1771733054277,3.90163643,85.282,85.241,3.97760825]
[1771733054476,8.8582616,85.281,85.241,3.97760825]
[1771733054675,3.90163643,85.282,85.241,3.97760825]
[1771733054874,3.90163643,85.28,85.241,3.97760825]
[1771733055679,14.45933643,85.28,85.241,3.97760825]
[1771733055879,3.90163643,85.279,85.241,3.97760825]
[1771733066489,3.90163643,85.277,85.241,3.97760825]
[1771733069690,12.7505499,85.276,85.241,3.97760825]
[1771733069889,8.84891347,85.275,85.241,3.97760825]
[1771733070089,3.90163643,85.276,85.241,3.97760825]
[1771733070389,8.84941743,85.275,85.241,3.97760825]
[1771733070690,3.90163643,85.275,85.241,3.97760825]
[1771733071094,8.85030784,85.274,85.241,3.97760825]
[1771733071295,3.90163643,85.275,85.241,3.97760825]
[1771733071594,8.85060734,85.274,85.241,3.97760825]
[1771733071793,3.90163643,85.275,85.241,3.97760825]
[1771733071995,8.85060734,85.274,85.241,3.97760825]
[1771733072195,3.90163643,85.275,85.241,3.97760825]
[1771733072496,10.5577,85.28,85.241,3.97760825]
[1771733072497,12.75292944,85.274,85.241,3.97760825]
[1771733072692,3.90163643,85.274,85.241,3.97760825]
[1771733073390,8.85267414,85.273,85.241,3.97760825]
[1771733073692,3.90163643,85.274,85.241,3.97760825]
[1771733074192,8.8536999,85.273,85.241,3.97760825]
[1771733074395,3.90163643,85.274,85.241,3.97760825]
[1771733074596,8.85398159,85.273,85.241,3.97760825]
[1771733074792,3.90163643,85.274,85.241,3.97760825]
[1771733074992,12.75561802,85.273,85.241,3.97760825]
[1771733075296,3.90163643,85.271,85.241,3.97760825]
[1771733075496,12.75710631,85.27,85.241,3.97760825]
[1771733075695,8.85546988,85.269,85.241,3.97760825]
[1771733075896,3.90163643,85.27,85.241,3.97760825]
[1771733076097,8.85547665,85.269,85.241,3.97760825]
[1771733076397,8.85547665,85.268,85.241,3.97760825]
[1771733076598,3.90163643,85.27,85.241,3.97760825]
[1771733076799,8.85701846,85.269,85.241,3.97760825]
[1771733077096,8.85701846,85.268,85.241,3.97760825]
[1771733077300,8.85701846,85.267,85.241,3.97760825]
[1771733077599,3.90163643,85.27,85.241,3.97760825]
[1771733077801,8.85881157,85.269,85.241,3.97760825]
[1771733078001,8.85881157,85.268,85.241,3.97760825]
[1771733078300,8.85881157,85.267,85.241,3.97760825]
[1771733078601,8.85881157,85.266,85.241,3.97760825]
[1771733078903,3.90163643,85.27,85.241,3.97760825]
[1771733079098,8.86093018,85.269,85.241,3.97760825]
[1771733079299,8.86093018,85.268,85.241,3.97760825]
[1771733079498,8.86093018,85.267,85.241,3.97760825]
[1771733079700,8.86093018,85.266,85.241,3.97760825]
[1771733080000,8.86093018,85.265,85.241,3.97760825]
[1771733080196,3.90163643,85.27,85.241,3.97760825]
[1771733080197,8.86672265,85.264,85.241,3.97760825]
[1771733080391,3.90163643,85.27,85.241,3.97760825]
[1771733080597,8.86681271,85.269,85.241,3.97760825]
[1771733080901,8.86681271,85.268,85.241,3.97760825]
[1771733081101,8.86681271,85.267,85.241,3.97760825]
[1771733081303,8.86681271,85.266,85.241,3.97760825]
[1771733081602,8.86681271,85.265,85.241,3.97760825]
[1771733081803,8.86681271,85.264,85.241,3.97760825]
[1771733082005,8.86681271,85.263,85.241,3.97760825]
[1771733082201,8.86681271,85.262,85.241,3.97760825]
[1771733082396,3.90163643,85.27,85.241,3.97760825]
[1771733082597,8.87179775,85.269,85.241,3.97760825]
[1771733082796,8.87179775,85.268,85.241,3.97760825]
[1771733082996,8.87179775,85.267,85.241,3.97760825]
[1771733083206,8.87179775,85.266,85.241,3.97760825]
[1771733083401,8.87179775,85.265,85.241,3.97760825]
[1771733083606,8.87179775,85.264,85.241,3.97760825]
[1771733083806,8.87179775,85.263,85.241,3.97760825]
[1771733084003,8.87179775,85.262,85.241,3.97760825]
[1771733084203,3.90163643,85.27,85.241,3.97760825]
[1771733084507,12.56422348,85.269,85.241,3.97760825]
[1771733084707,12.56422348,85.268,85.241,3.97760825]
[1771733084904,8.87168691,85.267,85.241,3.97760825]
[1771733085104,8.87168691,85.266,85.241,3.97760825]
[1771733085305,8.87168691,85.265,85.241,3.97760825]
[1771733085603,8.87168691,85.264,85.241,3.97760825]
[1771733085804,8.87168691,85.263,85.241,3.97760825]
[1771733086100,8.87168691,85.262,85.241,3.97760825]
[1771733086304,3.69253657,85.268,85.241,3.97760825]
[1771733086505,8.87173591,85.267,85.241,3.97760825]
[1771733086708,3.69253657,85.268,85.241,3.97760825]
[1771733086709,8.87173591,85.266,85.241,3.97760825]
[1771733087010,3.69253657,85.264,85.222,3.99131031]
[1771733087211,3.69253657,85.262,85.222,3.99131031]
[1771733088512,3.69253657,85.262,85.23,2.46557033]
[1771733089711,12.56419634,85.261,85.23,2.46557033]
[1771733090011,3.69253657,85.261,85.23,2.46557033]
[1771733098916,8.84807347,85.26,85.222,3.99131031]
[1771733099113,3.69253657,85.258,85.222,3.99131031]
[1771733099316,3.69253657,85.256,85.222,3.99131031]
[1771733099517,3.69253657,85.254,85.222,3.99131031]
[1771733100312,3.69253657,85.254,85.22,2.46557033]
[1771733100518,3.69253657,85.254,85.213,3.99131031]
[1771733101218,3.69253657,85.252,85.203,3.99131031]
[1771733101414,3.69253657,85.25,85.203,3.99131031]
[1771733101717,3.69253657,85.248,85.203,3.99131031]
[1771733102018,3.69253657,85.219,85.171,3.99131031]
[1771733102318,3.69253657,85.217,85.171,3.99131031]
[1771733103209,3.69253657,85.209,85.161,3.99131031]
[1771733104418,3.69253657,85.205,85.161,3.99131031]
[1771733105120,3.69253657,85.203,85.161,3.99131031]
[1771733107118,3.69253657,85.221,85.19,2.46557033]
[1771733108128,3.69253657,85.221,85.183,3.99131031]
[1771733128031,3.92825292,85.247,85.191,3.94597133]
[1771733128242,2.46818577,85.24,85.135,3.94597133]
[1771733128539,3.92825292,85.238,85.19,2.46818577]
[1771733128738,3.92825292,85.236,85.181,3.94597133]
[1771733128939,3.92825292,85.236,85.19,2.46818577]
[1771733129436,3.92825292,85.234,85.19,2.46818577]
[1771733129741,8.877598,85.235,85.19,2.46818577]
[1771733129742,3.92825292,85.232,85.19,2.46818577]
[1771733130840,3.92825292,85.23,85.19,2.46818577]
[1771733131043,3.92825292,85.23,85.191,3.94597133]
[1771733131244,3.92825292,85.23,85.2,2.46818577]
[1771733132339,3.92825292,85.23,85.191,3.94597133]
[1771733137348,3.92825292,85.228,85.191,3.94597133]
[1771733138345,3.69995248,85.226,85.191,3.94597133]
[1771733139453,12.60432324,85.225,85.191,3.94597133]
[1771733139648,3.69995248,85.225,85.191,3.94597133]
[1771733140351,8.90911289,85.224,85.191,3.94597133]
[1771733140549,3.69995248,85.225,85.191,3.94597133]
[1771733140852,8.90911289,85.224,85.191,3.94597133]
[1771733141053,3.69995248,85.225,85.191,3.94597133]
[1771733141352,8.90970613,85.224,85.191,3.94597133]
[1771733141552,8.90970613,85.223,85.191,3.94597133]
[1771733141753,8.90970613,85.222,85.191,3.94597133]
[1771733141955,8.90970613,85.221,85.191,3.94597133]
[1771733142249,3.69995248,85.225,85.191,3.94597133]
[1771733142553,8.91513718,85.224,85.191,3.94597133]
[1771733142754,8.91513718,85.223,85.191,3.94597133]
[1771733142953,8.91513718,85.222,85.191,3.94597133]
[1771733143154,8.91513718,85.221,85.191,3.94597133]
[1771733143455,8.91513718,85.22,85.191,3.94597133]
[1771733143655,8.91513718,85.219,85.191,3.94597133]
[1771733143847,8.91513718,85.218,85.191,3.94597133]
[1771733144154,8.91513718,85.217,85.191,3.94597133]
[1771733144454,8.91513718,85.216,85.191,3.94597133]
[1771733144654,8.91513718,85.215,85.191,3.94597133]
[1771733144855,8.91513718,85.214,85.191,3.94597133]
[1771733145055,8.91513718,85.213,85.191,3.94597133]
[1771733145257,3.69995248,85.225,85.191,3.94597133]
[1771733145554,8.93729988,85.224,85.191,3.94597133]
[1771733145757,8.93729988,85.223,85.191,3.94597133]
[1771733146058,8.93729988,85.222,85.191,3.94597133]
[1771733146354,3.69995248,85.225,85.191,3.94597133]
[1771733146355,8.93729988,85.221,85.191,3.94597133]
[1771733146556,8.93729988,85.22,85.191,3.94597133]
[1771733146755,8.93729988,85.219,85.191,3.94597133]
[1771733146955,8.93729988,85.218,85.191,3.94597133]
[1771733147150,8.93729988,85.217,85.191,3.94597133]
[1771733147347,8.93729988,85.216,85.191,3.94597133]
[1771733147550,8.93729988,85.215,85.191,3.94597133]
[1771733147758,8.93729988,85.214,85.191,3.94597133]
[1771733148056,3.69995248,85.225,85.191,3.94597133]
[1771733148256,8.94356646,85.224,85.191,3.94597133]
[1771733148453,8.94356646,85.223,85.191,3.94597133]
[1771733148657,8.94356646,85.222,85.191,3.94597133]
[1771733148858,8.94356646,85.221,85.191,3.94597133]
[1771733149059,8.94356646,85.22,85.191,3.94597133]
[1771733149358,8.94356646,85.219,85.191,3.94597133]
[1771733149657,8.94356646,85.218,85.191,3.94597133]
[1771733149852,3.69995248,85.225,85.191,3.94597133]
[1771733150058,8.90697283,85.224,85.191,3.94597133]
[1771733150360,8.90697283,85.223,85.191,3.94597133]
[1771733150560,8.90697283,85.222,85.191,3.94597133]
[1771733150760,8.90697283,85.221,85.191,3.94597133]
[1771733150962,8.90697283,85.22,85.191,3.94597133]
[1771733151157,8.90697283,85.219,85.191,3.94597133]
[1771733151462,8.90697283,85.218,85.191,3.94597133]
[1771733151659,8.90697283,85.217,85.191,3.94597133]
[1771733151856,8.90697283,85.216,85.191,3.94597133]
[1771733152161,3.69995248,85.225,85.191,3.94597133]
[1771733152363,12.61486621,85.224,85.191,3.94597133]
[1771733152562,8.91491373,85.223,85.191,3.94597133]
[1771733152762,8.91491373,85.222,85.191,3.94597133]
[1771733152964,8.91491373,85.221,85.191,3.94597133]
[1771733153163,8.91491373,85.22,85.191,3.94597133]
[1771733153364,8.91491373,85.219,85.191,3.94597133]
[1771733153561,8.91491373,85.218,85.191,3.94597133]
[1771733153762,8.91491373,85.217,85.191,3.94597133]
[1771733153963,8.91491373,85.216,85.191,3.94597133]
[1771733154163,3.69995248,85.224,85.191,3.94597133]
[1771733154364,8.91449011,85.223,85.191,3.94597133]
[1771733154561,8.91449011,85.222,85.191,3.94597133]
[1771733154759,8.91449011,85.221,85.191,3.94597133]
[1771733154956,8.91449011,85.22,85.191,3.94597133]
[1771733155257,8.91449011,85.219,85.191,3.94597133]
[1771733155464,8.91449011,85.218,85.191,3.94597133]
[1771733155658,8.91449011,85.217,85.191,3.94597133]
[1771733155863,8.91449011,85.216,85.191,3.94597133]
[1771733156064,3.69995248,85.224,85.191,3.94597133]
[1771733156256,8.91410913,85.223,85.191,3.94597133]
[1771733156457,8.91410913,85.222,85.191,3.94597133]
[1771733156657,8.91410913,85.221,85.191,3.94597133]
[1771733156961,8.91410913,85.22,85.191,3.94597133]
[1771733157160,8.91410913,85.219,85.191,3.94597133]
[1771733157356,8.91410913,85.218,85.191,3.94597133]
[1771733157563,8.91410913,85.217,85.191,3.94597133]
[1771733157762,3.69995248,85.224,85.191,3.94597133]
[1771733157963,8.91390793,85.223,85.191,3.94597133]
[1771733158158,8.91390793,85.222,85.191,3.94597133]
[1771733158363,8.91390793,85.221,85.191,3.94597133]
[1771733158662,8.91390793,85.22,85.191,3.94597133]
[1771733158960,8.91390793,85.219,85.191,3.94597133]
[1771733159159,8.91390793,85.218,85.191,3.94597133]
[1771733159361,8.91390793,85.217,85.191,3.94597133]
[1771733159568,3.69995248,85.224,85.191,3.94597133]
[1771733159768,10.5637,85.231,85.191,3.94597133]
[1771733159769,12.61371246,85.223,85.191,3.94597133]
[1771733159967,12.61371246,85.222,85.191,3.94597133]
[1771733160169,8.91375998,85.221,85.191,3.94597133]
[1771733160370,8.91375998,85.22,85.191,3.94597133]
[1771733160569,8.91375998,85.219,85.191,3.94597133]
[1771733160867,8.91375998,85.218,85.191,3.94597133]
[1771733161068,8.91375998,85.217,85.191,3.94597133]
[1771733161267,8.91375998,85.216,85.191,3.94597133]
[1771733161468,8.91375998,85.215,85.191,3.94597133]
[1771733161670,3.69995248,85.222,85.191,3.94597133]
[1771733161870,8.91374633,85.221,85.191,3.94597133]
[1771733162170,8.91374633,85.22,85.191,3.94597133]
[1771733162362,8.91374633,85.219,85.191,3.94597133]
[1771733162566,8.91374633,85.218,85.191,3.94597133]
[1771733162767,8.91374633,85.217,85.191,3.94597133]
[1771733162974,8.91374633,85.216,85.191,3.94597133]
[1771733163167,8.91374633,85.215,85.191,3.94597133]
[1771733163470,3.69995248,85.222,85.191,3.94597133]
[1771733163665,8.91377889,85.221,85.191,3.94597133]
[1771733163864,3.69995248,85.222,85.191,3.94597133]
[1771733163865,8.91377889,85.22,85.191,3.94597133]
[1771733164071,8.91377889,85.219,85.191,3.94597133]
[1771733164262,8.91377889,85.218,85.191,3.94597133]
[1771733164466,8.91377889,85.217,85.191,3.94597133]
[1771733164761,8.91377889,85.216,85.191,3.94597133]
[1771733164962,8.91377889,85.215,85.191,3.94597133]
[1771733165162,3.69995248,85.222,85.191,3.94597133]
[1771733165368,8.91409213,85.221,85.191,3.94597133]
[1771733165571,8.91409213,85.22,85.191,3.94597133]
[1771733165772,8.91409213,85.219,85.191,3.94597133]
[1771733165974,8.91409213,85.218,85.191,3.94597133]
[1771733166172,8.91409213,85.217,85.191,3.94597133]
[1771733166472,8.91409213,85.216,85.191,3.94597133]
[1771733166673,8.91409213,85.215,85.191,3.94597133]
[1771733166871,3.69995248,85.222,85.191,3.94597133]
[1771733167175,8.91440533,85.221,85.191,3.94597133]
[1771733167377,8.91440533,85.22,85.191,3.94597133]
[1771733167676,8.91440533,85.219,85.191,3.94597133]
[1771733167974,8.91440533,85.218,85.191,3.94597133]
[1771733168169,8.91440533,85.217,85.191,3.94597133]
[1771733168473,3.69995248,85.222,85.191,3.94597133]
[1771733168674,8.91448967,85.221,85.191,3.94597133]
[1771733168873,8.91448967,85.22,85.191,3.94597133]
[1771733169073,8.91448967,85.219,85.191,3.94597133]
[1771733169273,8.91448967,85.218,85.191,3.94597133]
[1771733169476,8.91448967,85.217,85.191,3.94597133]
[1771733169675,3.69995248,85.222,85.191,3.94597133]
[1771733169877,10.5637,85.231,85.191,3.94597133]
[1771733169878,12.79460453,85.221,85.191,3.94597133]
[1771733170072,8.91471376,85.22,85.191,3.94597133]
[1771733170278,8.91471376,85.219,85.191,3.94597133]
[1771733170577,8.91471376,85.218,85.191,3.94597133]
[1771733170779,8.91471376,85.217,85.191,3.94597133]
[1771733170976,8.91471376,85.216,85.191,3.94597133]
[1771733171178,3.87989077,85.221,85.191,3.94597133]
[1771733171380,8.91564812,85.22,85.191,3.94597133]
[1771733171570,8.91564812,85.219,85.191,3.94597133]
[1771733171773,8.91564812,85.218,85.191,3.94597133]
[1771733171974,8.91564812,85.217,85.191,3.94597133]
[1771733172177,8.91564812,85.216,85.191,3.94597133]
[1771733172376,3.87989077,85.221,85.191,3.94597133]
[1771733172577,8.91597567,85.22,85.191,3.94597133]
[1771733172778,8.91597567,85.219,85.191,3.94597133]
[1771733172978,8.91597567,85.218,85.191,3.94597133]
[1771733173180,8.91597567,85.217,85.191,3.94597133]
[1771733173379,8.91597567,85.216,85.191,3.94597133]
[1771733173579,3.87989077,85.221,85.191,3.94597133]
[1771733173881,8.91571939,85.22,85.191,3.94597133]
[1771733174082,8.91571939,85.219,85.191,3.94597133]
[1771733174273,8.91571939,85.218,85.191,3.94597133]
[1771733174475,8.91571939,85.217,85.191,3.94597133]
[1771733174680,8.91571939,85.216,85.191,3.94597133]
[1771733174877,3.7107937,85.22,85.191,3.94597133]
[1771733175083,8.91560015,85.219,85.191,3.94597133]
[1771733175279,8.91560015,85.218,85.191,3.94597133]
[1771733175484,8.91560015,85.217,85.191,3.94597133]
[1771733175684,8.91560015,85.216,85.191,3.94597133]
[1771733175885,3.7107937,85.22,85.191,3.94597133]
[1771733176082,8.91551304,85.219,85.191,3.94597133]
[1771733176282,8.91551304,85.218,85.191,3.94597133]
[1771733176483,8.91551304,85.217,85.191,3.94597133]
[1771733176684,8.91551304,85.216,85.191,3.94597133]
[1771733176983,3.7107937,85.22,85.191,3.94597133]
[1771733177183,8.91545531,85.219,85.191,3.94597133]
[1771733177383,8.91545531,85.218,85.191,3.94597133]
[1771733177685,3.7107937,85.216,85.18,2.46777337]
[1771733177886,3.7107937,85.214,85.18,2.46777337]
[1771733178086,3.7107937,85.212,85.18,2.46777337]
[1771733178284,8.91545531,85.211,85.181,3.90830643]
[1771733178484,3.7107937,85.212,85.181,3.90830643]
[1771733178687,8.91585707,85.211,85.181,3.90830643]
[1771733178888,3.7107937,85.212,85.181,3.90830643]
[1771733179086,8.91585707,85.211,85.181,3.90830643]
[1771733179387,8.91585707,85.21,85.19,2.46777337]
[1771733179681,10.99175662,85.23,85.19,2.46777337]
[1771733179882,3.7107937,85.228,85.19,2.46777337]
[1771733180186,21.55545662,85.231,85.19,2.46777337]
[1771733180187,3.7107937,85.226,85.19,2.46777337]
[1771733180485,8.91595677,85.227,85.19,2.46777337]
[1771733180486,3.7107937,85.224,85.19,2.46777337]
[1771733180784,3.7107937,85.222,85.19,2.46777337]
[1771733180986,12.62675047,85.221,85.19,2.46777337]
[1771733181185,8.91595677,85.22,85.19,2.46777337]
[1771733181385,8.91595677,85.219,85.19,2.46777337]
[1771733181587,8.91595677,85.218,85.19,2.46777337]
[1771733181785,8.91595677,85.217,85.181,3.90830643]
[1771733181986,8.91595677,85.216,85.181,3.90830643]
[1771733182187,8.91595677,85.215,85.181,3.90830643]
[1771733182383,8.91595677,85.214,85.181,3.90830643]
[1771733182589,8.91595677,85.213,85.181,3.90830643]
[1771733182889,8.91595677,85.212,85.181,3.90830643]
[1771733183087,3.7107937,85.221,85.181,3.90830643]
[1771733183287,12.62093523,85.22,85.181,3.90830643]
[1771733183487,8.91014153,85.219,85.181,3.90830643]
[1771733183689,8.91014153,85.218,85.181,3.90830643]
[1771733183889,8.91014153,85.217,85.181,3.90830643]
[1771733184084,8.91014153,85.216,85.181,3.90830643]
[1771733184289,8.91014153,85.215,85.181,3.90830643]
[1771733184491,8.91014153,85.214,85.181,3.90830643]
[1771733184790,8.91014153,85.213,85.181,3.90830643]
[1771733184990,8.91014153,85.212,85.181,3.90830643]
[1771733185293,8.91040073,85.211,85.181,3.90830643]
[1771733185592,3.7107937,85.22,85.181,3.90830643]
[1771733185895,12.6211969,85.219,85.181,3.90830643]
[1771733186089,10.5637,85.231,85.181,3.90830643]
[1771733186090,12.6211969,85.218,85.181,3.90830643]
[1771733186394,8.9104032,85.217,85.181,3.90830643]
[1771733186590,8.9104032,85.216,85.181,3.90830643]
[1771733186890,8.9104032,85.215,85.181,3.90830643]
[1771733187088,3.7107937,85.218,85.181,3.90830643]
[1771733187089,8.9104032,85.214,85.181,3.90830643]
[1771733187290,8.9104032,85.213,85.181,3.90830643]
[1771733187487,3.7107937,85.218,85.181,3.90830643]
[1771733187786,8.9106405,85.217,85.181,3.90830643]
[1771733187982,8.9106405,85.216,85.181,3.90830643]
[1771733188182,8.9106405,85.215,85.181,3.90830643]
[1771733188390,8.9106405,85.214,85.181,3.90830643]
[1771733188590,8.9106405,85.213,85.181,3.90830643]
[1771733188796,8.9106405,85.212,85.181,3.90830643]
[1771733188986,3.7107937,85.218,85.181,3.90830643]
[1771733189189,8.91082339,85.217,85.181,3.90830643]
[1771733189396,8.91082339,85.216,85.181,3.90830643]
[1771733189589,8.91082339,85.215,85.181,3.90830643]
[1771733189784,3.7107937,85.218,85.181,3.90830643]
[1771733189993,12.62170508,85.217,85.181,3.90830643]
[1771733190193,8.91091138,85.216,85.181,3.90830643]
[1771733190388,3.7107937,85.217,85.181,3.90830643]
[1771733190585,8.91115016,85.216,85.181,3.90830643]
[1771733190786,3.7107937,85.217,85.181,3.90830643]
[1771733190987,8.91115016,85.216,85.181,3.90830643]
[1771733191186,8.91135905,85.215,85.181,3.90830643]
[1771733191388,3.7107937,85.217,85.181,3.90830643]
[1771733191595,8.9114061,85.216,85.181,3.90830643]
[1771733191796,8.9114061,85.215,85.181,3.90830643]
[1771733192097,3.7107937,85.217,85.181,3.90830643]
[1771733192396,8.91133925,85.216,85.181,3.90830643]
[1771733192697,2.46777337,85.24,85.21,2.46777337]
[1771733192698,10.99175662,85.24,85.21,2.46777337]
[1771733192896,10.99175662,85.259,85.21,2.46777337]
[1771733193102,8.90912398,85.258,85.21,2.46777337]
[1771733193302,8.90912398,85.257,85.21,2.46777337]
[1771733193498,8.90912398,85.256,85.21,2.46777337]
[1771733193694,10.5609,85.254,85.21,2.46777337]
[1771733193894,8.90912398,85.253,85.21,2.46777337]
[1771733194101,8.90912398,85.252,85.22,2.46777337]
[1771733194293,8.90912398,85.251,85.21,6.3760798]
[1771733194498,8.90912398,85.25,85.21,6.3760798]
[1771733194804,3.7107937,85.263,85.21,6.3760798]
[1771733195105,3.7107937,85.261,85.21,6.3760798]
[1771733195302,3.7107937,85.259,85.21,6.3760798]
[1771733195506,3.7107937,85.257,85.21,6.3760798]
[1771733195713,3.7107937,85.255,85.211,3.90830643]
[1771733195899,3.7107937,85.253,85.211,3.90830643]
[1771733196206,3.7107937,85.251,85.22,2.46777337]
[1771733196907,3.7107937,85.251,85.23,2.46777337]
[1771733197212,3.7107937,85.251,85.212,3.90830643]
[1771733213721,3.7107937,85.251,85.221,3.88243499]
[1771733214125,3.7107937,85.251,85.211,3.88243499]
[1771733215414,3.7107937,85.251,85.183,10.5696]
[1771733215415,2.46777337,85.24,85.182,3.88243499]
[1771733215617,3.97040656,85.238,85.182,3.88243499]
[1771733215820,3.97040656,85.236,85.182,3.88243499]
[1771733216921,3.97040656,85.236,85.19,2.46777337]
[1771733219920,3.97040656,85.236,85.19,6.35020836]
[1771733220419,3.97040656,85.236,85.191,3.88243499]
[1771733220818,3.97040656,85.234,85.191,3.88243499]
[1771733221024,3.97040656,85.229,85.171,3.88243499]
[1771733221219,3.97040656,85.219,85.171,3.88243499]
[1771733221418,3.97040656,85.219,85.098,29.31385518]
[1771733221419,3.97040656,85.214,85.161,3.88243499]
[1771733222326,48.32821817,85.312,85.161,3.88243499]
[1771733222327,3.97040656,85.209,85.161,3.88243499]
[1771733223817,3.97040656,85.208,85.161,3.88243499]
[1771733228327,3.84107885,85.205,85.161,3.88243499]
[1771733228731,3.84107885,85.205,85.17,2.46777337]
[1771733230828,3.84107885,85.195,85.16,2.46777337]
[1771733232828,3.59939704,85.193,85.16,2.46777337]
[1771733235933,3.59939704,85.193,85.16,2.46991822]
[1771733245943,3.59939704,85.193,85.151,3.68035314]
[1771733246244,3.59939704,85.193,85.16,2.46991822]
[1771733257352,3.59939704,85.19,85.16,1.822e-05]
[1771733258652,10.5689,85.189,85.16,1.822e-05]
[1771733258849,3.91961152,85.188,85.16,1.822e-05]
[1771733260451,8.87813557,85.187,85.126,301.89852836]
[1771733260656,8.87813557,85.186,85.16,2.46991822]
[1771733260855,3.91961152,85.195,85.17,1.822e-05]
[1771733261058,10.92229275,85.206,85.126,301.89852836]
[1771733261059,3.91961152,85.193,85.16,2.46991822]
[1771733261357,8.87812263,85.192,85.16,2.46991822]
[1771733261556,8.87812263,85.191,85.16,2.46991822]
[1771733261757,8.87812263,85.19,85.16,2.46991822]